[Event "Titled Tuesday Blitz January 03 Late 2023"]
[White "Graif, William"]
[Black "Shuvalova, Polina"]
[WhiteFideId "2609835"]
[BlackFideId "24171760"]
[WhiteElo "2304"]
[BlackElo "2484"]
[Result "1/2-1/2"]
[Round "07"]
[TimeControl "180+2"]
[Date "2023.01.03"]
[WhiteClock "0:00:06"]
[BlackClock "0:00:04"]

1. e4 {[%clk 0:02:49]}  e5 {[%clk 0:02:59]} 2. Nf3 {[%clk 0:02:48]}  Nc6 {[%clk 0:02:59]} 3. Bc4 {[%clk 0:02:47]}  Nf6 {[%clk 0:02:58]} 4. d3 {[%clk 0:02:47]}  Bc5 {[%clk 0:02:59]} 5. c3 {[%clk 0:02:47]}  O-O {[%clk 0:02:59]} 6. Bg5 {[%clk 0:02:46]}  h6 {[%clk 0:02:58]} 7. Bh4 {[%clk 0:02:46]}  a6 {[%clk 0:02:55]} 8. Nbd2 {[%clk 0:02:37]}  Re8 {[%clk 0:02:45]} 9. O-O {[%clk 0:02:17]}  Na5 {[%clk 0:02:38]} 10. d4 {[%clk 0:01:52]}  exd4 {[%clk 0:02:22]} 11. e5 {[%clk 0:01:44]}  dxc3 {[%clk 0:02:14]} 12. Ne4 {[%clk 0:01:09]}  Nxe4 {[%clk 0:02:02]} 13. Bxd8 {[%clk 0:01:00]}  Nxc4 {[%clk 0:01:58]} 14. Qd5 {[%clk 0:00:51]}  cxb2 {[%clk 0:01:54]} 15. Qxc4 {[%clk 0:00:43]}  bxa1=Q {[%clk 0:01:53]} 16. Rxa1 {[%clk 0:00:43]}  Bxf2+ {[%clk 0:01:49]} 17. Kf1 {[%clk 0:00:43]}  Rxd8 {[%clk 0:01:30]} 18. Qxe4 {[%clk 0:00:42]}  Bb6 {[%clk 0:01:30]} 19. Rd1 {[%clk 0:00:36]}  d6 {[%clk 0:01:22]} 20. exd6 {[%clk 0:00:34]}  Be6 {[%clk 0:01:12]} 21. Qb4 {[%clk 0:00:16]}  a5 {[%clk 0:01:07]} 22. Qa3 {[%clk 0:00:16]}  Bg4 {[%clk 0:00:49]} 23. Rd3 {[%clk 0:00:11]}  Bf5 {[%clk 0:00:41]} 24. Rd2 {[%clk 0:00:09]}  Be4 {[%clk 0:00:19]} 25. dxc7 {[%clk 0:00:08]}  Bxc7 {[%clk 0:00:19]} 26. Qe3 {[%clk 0:00:05]}  Bxf3 {[%clk 0:00:17]} 27. Rxd8+ {[%clk 0:00:05]}  Rxd8 {[%clk 0:00:18]} 28. Qxf3 {[%clk 0:00:05]}  b5 {[%clk 0:00:14]} 29. Qc6 {[%clk 0:00:05]}  Be5 {[%clk 0:00:11]} 30. Qxb5 {[%clk 0:00:05]}  Bc3 {[%clk 0:00:05]} 31. h3 {[%clk 0:00:05]}  Rd1+ {[%clk 0:00:03]} 32. Kf2 {[%clk 0:00:05]}  Bb4 {[%clk 0:00:03]} 33. Qe8+ {[%clk 0:00:04]}  Bf8 {[%clk 0:00:03]} 34. a4 {[%clk 0:00:04]}  Rd2+ {[%clk 0:00:03]} 35. Kg3 {[%clk 0:00:04]}  Rb2 {[%clk 0:00:03]} 36. Qc6 {[%clk 0:00:04]}  Rb3+ {[%clk 0:00:03]} 37. Kh2 {[%clk 0:00:04]}  Rb4 {[%clk 0:00:04]} 38. Kh1 {[%clk 0:00:04]}  Rb1+ {[%clk 0:00:04]} 39. Kh2 {[%clk 0:00:04]}  Rb4 {[%clk 0:00:05]} 40. Qd7 {[%clk 0:00:05]}  Rb3 {[%clk 0:00:03]} 41. Qc6 {[%clk 0:00:06]}  Rb4 {[%clk 0:00:04]} 1/2-1/2


[Site "https://www.chess.com"]

[Event "Titled Tuesday Blitz January 03 Late 2023"]
[White "Goroshkov, Maksym"]
[Black "Sanchez, Robert"]
[WhiteFideId "14142716"]
[BlackFideId "2034360"]
[WhiteElo "2287"]
[BlackElo "1966"]
[Result "0-1"]
[Round "07"]
[TimeControl "180+2"]
[Date "2023.01.03"]
[WhiteClock "0:01:08"]
[BlackClock "0:00:10"]

1. e4 {[%clk 0:03:00]}  e6 {[%clk 0:03:00]} 2. d4 {[%clk 0:03:00]}  d5 {[%clk 0:03:00]} 3. exd5 {[%clk 0:03:01]}  exd5 {[%clk 0:03:00]} 4. c4 {[%clk 0:03:02]}  Nf6 {[%clk 0:03:00]} 5. Nc3 {[%clk 0:03:02]}  Be7 {[%clk 0:02:58]} 6. Nf3 {[%clk 0:03:03]}  O-O {[%clk 0:02:58]} 7. Be2 {[%clk 0:03:04]}  dxc4 {[%clk 0:02:58]} 8. Bxc4 {[%clk 0:03:04]}  Bg4 {[%clk 0:02:58]} 9. O-O {[%clk 0:03:04]}  Nc6 {[%clk 0:02:58]} 10. Be3 {[%clk 0:03:04]}  Bxf3 {[%clk 0:02:52]} 11. Qxf3 {[%clk 0:03:05]}  Nxd4 {[%clk 0:02:53]} 12. Qxb7 {[%clk 0:03:04]}  c5 {[%clk 0:02:43]} 13. Rad1 {[%clk 0:03:01]}  Rb8 {[%clk 0:02:41]} 14. Qxa7 {[%clk 0:03:00]}  Rxb2 {[%clk 0:02:40]} 15. Bxd4 {[%clk 0:03:00]}  cxd4 {[%clk 0:02:39]} 16. Qxd4 {[%clk 0:02:56]}  Qxd4 {[%clk 0:02:22]} 17. Rxd4 {[%clk 0:02:57]}  Bc5 {[%clk 0:02:17]} 18. Rd3 {[%clk 0:02:44]}  Ng4 {[%clk 0:01:43]} 19. Ne4 {[%clk 0:02:35]}  Bb6 {[%clk 0:01:33]} 20. Rf3 {[%clk 0:02:28]}  Ne5 {[%clk 0:01:19]} 21. Rc3 {[%clk 0:02:27]}  Rd8 {[%clk 0:01:07]} 22. Bb3 {[%clk 0:02:23]}  Kf8 {[%clk 0:00:57]} 23. Rc2 {[%clk 0:02:09]}  Rxc2 {[%clk 0:00:51]} 24. Bxc2 {[%clk 0:02:10]}  f5 {[%clk 0:00:47]} 25. Ng5 {[%clk 0:02:07]}  Rd2 {[%clk 0:00:45]} 26. Bxf5 {[%clk 0:02:06]}  Rxa2 {[%clk 0:00:41]} 27. Nxh7+ {[%clk 0:02:05]}  Ke7 {[%clk 0:00:41]} 28. h3 {[%clk 0:01:42]}  g6 {[%clk 0:00:39]} 29. Be4 {[%clk 0:01:39]}  Re2 {[%clk 0:00:35]} 30. Bf3 {[%clk 0:01:38]}  Nxf3+ {[%clk 0:00:34]} 31. gxf3 {[%clk 0:01:39]}  Re5 {[%clk 0:00:32]} 32. h4 {[%clk 0:01:28]}  Rh5 {[%clk 0:00:28]} 33. Ng5 {[%clk 0:01:28]}  Rxh4 {[%clk 0:00:29]} 34. Kg2 {[%clk 0:01:27]}  Ra4 {[%clk 0:00:19]} 35. Re1+ {[%clk 0:01:26]}  Kf6 {[%clk 0:00:18]} 36. Re6+ {[%clk 0:01:20]}  Kxg5 {[%clk 0:00:18]} 37. Rxb6 {[%clk 0:01:21]}  Rf4 {[%clk 0:00:15]} 38. Kg3 {[%clk 0:01:21]}  Rf8 {[%clk 0:00:15]} 39. Rb5+ {[%clk 0:01:20]}  Kh6 {[%clk 0:00:14]} 40. f4 {[%clk 0:01:21]}  Rf7 {[%clk 0:00:14]} 41. Kg4 {[%clk 0:01:21]}  Rc7 {[%clk 0:00:13]} 42. Rb6 {[%clk 0:01:20]}  Kg7 {[%clk 0:00:13]} 43. f3 {[%clk 0:01:19]}  Rc5 {[%clk 0:00:12]} 44. Rd6 {[%clk 0:01:18]}  Rf5 {[%clk 0:00:12]} 45. Re6 {[%clk 0:01:17]}  Rb5 {[%clk 0:00:12]} 46. Re5 {[%clk 0:01:17]}  Rb1 {[%clk 0:00:13]} 47. f5 {[%clk 0:01:14]}  Rg1+ {[%clk 0:00:12]} 48. Kf4 {[%clk 0:01:14]}  g5+ {[%clk 0:00:11]} 49. Ke4 {[%clk 0:01:15]}  Re1+ {[%clk 0:00:07]} 50. Kd5 {[%clk 0:01:15]}  Rf1 {[%clk 0:00:06]} 51. Ke6 {[%clk 0:01:14]}  Rxf3 {[%clk 0:00:05]} 52. Re4 {[%clk 0:01:14]}  Kh6 {[%clk 0:00:04]} 53. Kf6 {[%clk 0:01:11]}  Kh5 {[%clk 0:00:04]} 54. Re1 {[%clk 0:01:08]}  g4 {[%clk 0:00:02]} 55. Re8 {[%clk 0:01:03]}  Kh4 {[%clk 0:00:03]} 56. Rh8+ {[%clk 0:01:00]}  Kg3 {[%clk 0:00:03]} 57. Kg5 {[%clk 0:01:01]}  Rb3 {[%clk 0:00:02]} 58. Rh4 {[%clk 0:01:00]}  Rb4 {[%clk 0:00:03]} 59. f6 {[%clk 0:01:00]}  Rb5+ {[%clk 0:00:03]} 60. Kg6 {[%clk 0:01:00]}  Kxh4 {[%clk 0:00:04]} 61. f7 {[%clk 0:01:00]}  Rb8 {[%clk 0:00:04]} 62. Kf5 {[%clk 0:01:01]}  g3 {[%clk 0:00:04]} 63. Ke6 {[%clk 0:01:01]}  Kh3 {[%clk 0:00:04]} 64. Kd7 {[%clk 0:01:02]}  g2 {[%clk 0:00:05]} 65. Kc7 {[%clk 0:01:03]}  Rf8 {[%clk 0:00:05]} 66. Kd7 {[%clk 0:01:03]}  Rxf7+ {[%clk 0:00:06]} 67. Ke6 {[%clk 0:01:04]}  Rf2 {[%clk 0:00:07]} 68. Ke5 {[%clk 0:01:04]}  g1=Q {[%clk 0:00:07]} 69. Ke4 {[%clk 0:01:05]}  Qe1+ {[%clk 0:00:08]} 70. Kd3 {[%clk 0:01:06]}  Rd2+ {[%clk 0:00:08]} 71. Kc4 {[%clk 0:01:07]}  Qc1+ {[%clk 0:00:08]} 72. Kb3 {[%clk 0:01:08]}  Rb2+ {[%clk 0:00:09]} 73. Ka3 {[%clk 0:01:08]}  Qa1# {[%clk 0:00:10]} 0-1


[Site "https://www.chess.com"]

[Event "Titled Tuesday Blitz January 03 Late 2023"]
[White "Fernandez Garcia, Gumersindo"]
[Black "Domingo Nunez, Ruben"]
[WhiteFideId "24516740"]
[BlackFideId "22245570"]
[WhiteElo "2160"]
[BlackElo "2416"]
[Result "0-1"]
[Round "07"]
[TimeControl "180+2"]
[Date "2023.01.03"]
[WhiteClock "0:00:12"]
[BlackClock "0:00:09"]

1. g3 {[%clk 0:03:00]}  g6 {[%clk 0:03:00]} 2. Bg2 {[%clk 0:03:00]}  Bg7 {[%clk 0:03:01]} 3. a3 {[%clk 0:03:00]}  Nf6 {[%clk 0:03:02]} 4. d3 {[%clk 0:03:01]}  O-O {[%clk 0:03:03]} 5. e3 {[%clk 0:03:00]}  c5 {[%clk 0:03:03]} 6. Ne2 {[%clk 0:03:01]}  Nc6 {[%clk 0:03:04]} 7. Nd2 {[%clk 0:03:01]}  d5 {[%clk 0:03:05]} 8. O-O {[%clk 0:03:01]}  e5 {[%clk 0:03:06]} 9. b3 {[%clk 0:02:58]}  Re8 {[%clk 0:03:06]} 10. Bb2 {[%clk 0:02:58]}  b5 {[%clk 0:03:06]} 11. a4 {[%clk 0:02:57]}  b4 {[%clk 0:03:06]} 12. e4 {[%clk 0:02:56]}  d4 {[%clk 0:03:01]} 13. Nc4 {[%clk 0:02:57]}  Be6 {[%clk 0:03:01]} 14. f4 {[%clk 0:02:55]}  Bxc4 {[%clk 0:03:01]} 15. bxc4 {[%clk 0:02:53]}  Ng4 {[%clk 0:03:02]} 16. Bc1 {[%clk 0:02:52]}  Rb8 {[%clk 0:03:00]} 17. h3 {[%clk 0:02:51]}  Ne3 {[%clk 0:03:01]} 18. Bxe3 {[%clk 0:02:51]}  dxe3 {[%clk 0:03:02]} 19. Re1 {[%clk 0:02:35]}  exf4 {[%clk 0:02:59]} 20. Rb1 {[%clk 0:02:32]}  fxg3 {[%clk 0:02:56]} 21. Nxg3 {[%clk 0:02:24]}  Qh4 {[%clk 0:02:56]} 22. Nf1 {[%clk 0:02:22]}  Qf2+ {[%clk 0:02:11]} 23. Kh1 {[%clk 0:02:22]}  Bd4 {[%clk 0:02:11]} 24. Re2 {[%clk 0:02:10]}  Qf4 {[%clk 0:02:11]} 25. Qe1 {[%clk 0:02:03]}  Bc3 {[%clk 0:02:09]} 26. Qd1 {[%clk 0:01:55]}  Bd2 {[%clk 0:01:47]} 27. Nxd2 {[%clk 0:01:53]}  Nd4 {[%clk 0:01:48]} 28. Nf1 {[%clk 0:01:47]}  Nxe2 {[%clk 0:01:45]} 29. Qxe2 {[%clk 0:01:46]}  f5 {[%clk 0:01:45]} 30. Qxe3 {[%clk 0:01:44]}  Qe5 {[%clk 0:01:44]} 31. Qg3 {[%clk 0:01:32]}  f4 {[%clk 0:01:30]} 32. Qg4 {[%clk 0:01:27]}  Rf8 {[%clk 0:01:30]} 33. Nd2 {[%clk 0:01:00]}  Qc3 {[%clk 0:01:30]} 34. Nf3 {[%clk 0:01:00]}  Qxc2 {[%clk 0:01:30]} 35. Qe6+ {[%clk 0:01:00]}  Kg7 {[%clk 0:01:29]} 36. Qe5+ {[%clk 0:00:55]}  Rf6 {[%clk 0:01:29]} 37. Qxb8 {[%clk 0:00:35]}  Qxb1+ {[%clk 0:01:29]} 38. Kh2 {[%clk 0:00:36]}  Qxd3 {[%clk 0:01:23]} 39. Qxa7+ {[%clk 0:00:36]}  Kg8 {[%clk 0:00:58]} 40. Qxc5 {[%clk 0:00:31]}  b3 {[%clk 0:00:58]} 41. Qc8+ {[%clk 0:00:17]}  Kg7 {[%clk 0:00:51]} 42. Qc7+ {[%clk 0:00:17]}  Kh6 {[%clk 0:00:46]} 43. Qe5 {[%clk 0:00:17]}  Qd8 {[%clk 0:00:42]} 44. Qg5+ {[%clk 0:00:17]}  Kg7 {[%clk 0:00:41]} 45. Qe5 {[%clk 0:00:18]}  Qd6 {[%clk 0:00:41]} 46. Qb2 {[%clk 0:00:18]}  Qd3 {[%clk 0:00:37]} 47. e5 {[%clk 0:00:17]}  Re6 {[%clk 0:00:30]} 48. Nd4 {[%clk 0:00:17]}  Qg3+ {[%clk 0:00:25]} 49. Kg1 {[%clk 0:00:16]}  Qe3+ {[%clk 0:00:16]} 50. Kh2 {[%clk 0:00:16]}  Rb6 {[%clk 0:00:09]} 51. e6 {[%clk 0:00:14]}  Qg3+ {[%clk 0:00:10]} 52. Kh1 {[%clk 0:00:14]}  Kh6 {[%clk 0:00:10]} 53. Nf3 {[%clk 0:00:14]}  Rxe6 {[%clk 0:00:09]} 54. Qxb3 {[%clk 0:00:14]}  Re1+ {[%clk 0:00:08]} 55. Ng1 {[%clk 0:00:12]}  Qxb3 {[%clk 0:00:09]} 0-1


[Site "https://www.chess.com"]

[Event "Titled Tuesday Blitz January 03 Late 2023"]
[White "Garcia Ramos, Daniel"]
[Black "Jovic, Stanoje"]
[WhiteFideId "32010311"]
[BlackFideId "905020"]
[WhiteElo "2442"]
[BlackElo "2075"]
[Result "1-0"]
[Round "07"]
[TimeControl "180+2"]
[Date "2023.01.03"]
[WhiteClock "0:00:52"]
[BlackClock "0:00:35"]

1. e4 {[%clk 0:01:56]}  c6 {[%clk 0:02:59]} 2. d4 {[%clk 0:01:55]}  d5 {[%clk 0:02:59]} 3. Nc3 {[%clk 0:01:55]}  dxe4 {[%clk 0:02:58]} 4. Nxe4 {[%clk 0:01:56]}  Nf6 {[%clk 0:02:59]} 5. Nxf6+ {[%clk 0:01:55]}  exf6 {[%clk 0:02:59]} 6. c3 {[%clk 0:01:56]}  Bd6 {[%clk 0:02:59]} 7. Bd3 {[%clk 0:01:57]}  O-O {[%clk 0:02:59]} 8. Ne2 {[%clk 0:01:57]}  Qc7 {[%clk 0:02:58]} 9. Qc2 {[%clk 0:01:54]}  h6 {[%clk 0:02:58]} 10. h3 {[%clk 0:01:50]}  c5 {[%clk 0:02:57]} 11. O-O {[%clk 0:01:49]}  c4 {[%clk 0:02:57]} 12. Be4 {[%clk 0:01:48]}  Nc6 {[%clk 0:02:55]} 13. Re1 {[%clk 0:01:42]}  b5 {[%clk 0:02:55]} 14. Bf4 {[%clk 0:01:38]}  Bb7 {[%clk 0:02:50]} 15. Bxd6 {[%clk 0:01:36]}  Qxd6 {[%clk 0:02:48]} 16. Ng3 {[%clk 0:01:36]}  Rfe8 {[%clk 0:02:38]} 17. Qd2 {[%clk 0:01:29]}  Qc7 {[%clk 0:02:19]} 18. Nf5 {[%clk 0:01:27]}  Rad8 {[%clk 0:02:01]} 19. Nxh6+ {[%clk 0:01:19]}  gxh6 {[%clk 0:01:57]} 20. Qxh6 {[%clk 0:01:20]}  Rxe4 {[%clk 0:01:54]} 21. Rxe4 {[%clk 0:01:18]}  Ne7 {[%clk 0:01:54]} 22. Rg4+ {[%clk 0:01:16]}  Ng6 {[%clk 0:01:52]} 23. h4 {[%clk 0:01:12]}  Qd7 {[%clk 0:01:30]} 24. Rg3 {[%clk 0:01:09]}  Be4 {[%clk 0:01:21]} 25. h5 {[%clk 0:01:06]}  Qf5 {[%clk 0:00:59]} 26. Re1 {[%clk 0:01:00]}  Re8 {[%clk 0:00:35]} 27. hxg6 {[%clk 0:00:58]}  fxg6 {[%clk 0:00:35]} 28. f3 {[%clk 0:00:52]} 1-0


[Site "https://www.chess.com"]

[Event "Titled Tuesday Blitz January 03 Late 2023"]
[White "Khandelwal, Ankush"]
[Black "Vlassov, Nikolai"]
[WhiteFideId "413470"]
[BlackFideId "4103360"]
[WhiteElo "2205"]
[BlackElo "2283"]
[Result "0-1"]
[Round "07"]
[TimeControl "180+2"]
[Date "2023.01.03"]
[WhiteClock "0:00:25"]
[BlackClock "0:01:39"]

1. e4 {[%clk 0:02:56]}  Nc6 {[%clk 0:02:59]} 2. Nf3 {[%clk 0:02:55]}  d5 {[%clk 0:02:59]} 3. exd5 {[%clk 0:02:54]}  Qxd5 {[%clk 0:03:00]} 4. Nc3 {[%clk 0:02:55]}  Qa5 {[%clk 0:03:00]} 5. d4 {[%clk 0:02:55]}  Bg4 {[%clk 0:03:00]} 6. Bb5 {[%clk 0:02:49]}  O-O-O {[%clk 0:02:59]} 7. Bxc6 {[%clk 0:02:49]}  bxc6 {[%clk 0:03:00]} 8. h3 {[%clk 0:02:41]}  Qh5 {[%clk 0:02:59]} 9. Qe2 {[%clk 0:02:19]}  Bxf3 {[%clk 0:02:52]} 10. gxf3 {[%clk 0:02:20]}  e6 {[%clk 0:02:47]} 11. Qa6+ {[%clk 0:02:16]}  Kd7 {[%clk 0:02:46]} 12. Be3 {[%clk 0:02:10]}  Qxf3 {[%clk 0:02:44]} 13. Rg1 {[%clk 0:02:10]}  Bd6 {[%clk 0:02:36]} 14. Rd1 {[%clk 0:02:05]}  Ne7 {[%clk 0:02:35]} 15. Na4 {[%clk 0:01:58]}  Nf5 {[%clk 0:02:28]} 16. Bg5 {[%clk 0:01:45]}  f6 {[%clk 0:02:22]} 17. Bc1 {[%clk 0:01:40]}  Qxh3 {[%clk 0:02:10]} 18. Nc5+ {[%clk 0:01:25]}  Bxc5 {[%clk 0:01:58]} 19. dxc5+ {[%clk 0:01:26]}  Ke7 {[%clk 0:01:58]} 20. Rxd8 {[%clk 0:01:02]}  Rxd8 {[%clk 0:01:56]} 21. Qxc6 {[%clk 0:01:03]}  Qh2 {[%clk 0:01:46]} 22. Rg2 {[%clk 0:00:26]}  Qh1+ {[%clk 0:01:40]} 23. Ke2 {[%clk 0:00:25]}  Qd1# {[%clk 0:01:39]} 0-1


[Site "https://www.chess.com"]

[Event "Titled Tuesday Blitz January 03 Late 2023"]
[White "Karas, Marek"]
[Black "Papp, Levente"]
[WhiteFideId "14928558"]
[BlackFideId "751243"]
[WhiteElo "2227"]
[BlackElo "2353"]
[Result "1/2-1/2"]
[Round "07"]
[TimeControl "180+2"]
[Date "2023.01.03"]
[WhiteClock "0:00:19"]
[BlackClock "0:00:05"]

1. e4 {[%clk 0:03:00]}  e6 {[%clk 0:03:00]} 2. d4 {[%clk 0:03:00]}  d5 {[%clk 0:03:00]} 3. Bd3 {[%clk 0:03:00]}  Be7 {[%clk 0:02:44]} 4. Nc3 {[%clk 0:02:56]}  c5 {[%clk 0:02:34]} 5. dxc5 {[%clk 0:02:51]}  Nf6 {[%clk 0:02:23]} 6. exd5 {[%clk 0:02:50]}  exd5 {[%clk 0:02:23]} 7. Nf3 {[%clk 0:02:48]}  O-O {[%clk 0:02:22]} 8. O-O {[%clk 0:02:48]}  h6 {[%clk 0:02:22]} 9. Be3 {[%clk 0:02:41]}  Bg4 {[%clk 0:02:04]} 10. h3 {[%clk 0:02:38]}  Bxf3 {[%clk 0:02:04]} 11. Qxf3 {[%clk 0:02:39]}  d4 {[%clk 0:02:05]} 12. Qxb7 {[%clk 0:02:38]}  dxe3 {[%clk 0:01:54]} 13. Qxa8 {[%clk 0:02:36]}  exf2+ {[%clk 0:01:52]} 14. Kh1 {[%clk 0:02:17]}  Bxc5 {[%clk 0:01:47]} 15. Qf3 {[%clk 0:02:14]}  Nbd7 {[%clk 0:01:39]} 16. Rad1 {[%clk 0:02:05]}  Qc7 {[%clk 0:01:20]} 17. Nd5 {[%clk 0:01:44]}  Nxd5 {[%clk 0:01:17]} 18. Qxd5 {[%clk 0:01:45]}  Nf6 {[%clk 0:01:18]} 19. Qf5 {[%clk 0:01:39]}  Re8 {[%clk 0:01:06]} 20. Rxf2 {[%clk 0:01:34]}  Bxf2 {[%clk 0:01:04]} 21. Qxf2 {[%clk 0:01:35]}  a5 {[%clk 0:01:00]} 22. Re1 {[%clk 0:01:35]}  Rb8 {[%clk 0:00:56]} 23. Qe3 {[%clk 0:01:27]}  Qd6 {[%clk 0:00:27]} 24. b3 {[%clk 0:01:21]}  Qb4 {[%clk 0:00:08]} 25. c3 {[%clk 0:01:15]}  Qf8 {[%clk 0:00:08]} 26. Qe7 {[%clk 0:01:13]}  Qc8 {[%clk 0:00:08]} 27. Bc4 {[%clk 0:01:12]}  Rb7 {[%clk 0:00:04]} 28. Bxf7+ {[%clk 0:01:09]}  Kh7 {[%clk 0:00:05]} 29. Qe6 {[%clk 0:01:04]}  Qc5 {[%clk 0:00:04]} 30. Qc4 {[%clk 0:00:57]}  Qg5 {[%clk 0:00:02]} 31. Qd3+ {[%clk 0:00:54]}  g6 {[%clk 0:00:02]} 32. Bc4 {[%clk 0:00:50]}  Nh5 {[%clk 0:00:03]} 33. Qf3 {[%clk 0:00:48]}  Rg7 {[%clk 0:00:02]} 34. Qe3 {[%clk 0:00:41]}  Ng3+ {[%clk 0:00:02]} 35. Kg1 {[%clk 0:00:39]}  Qh4 {[%clk 0:00:01]} 36. Rd1 {[%clk 0:00:31]}  Nf5 {[%clk 0:00:02]} 37. Qf2 {[%clk 0:00:30]}  Qf6 {[%clk 0:00:02]} 38. g4 {[%clk 0:00:25]}  Qxc3 {[%clk 0:00:02]} 39. gxf5 {[%clk 0:00:22]}  gxf5+ {[%clk 0:00:02]} 40. Kh2 {[%clk 0:00:20]}  Qe5+ {[%clk 0:00:03]} 41. Kh1 {[%clk 0:00:20]}  Qe4+ {[%clk 0:00:03]} 42. Kh2 {[%clk 0:00:19]}  Qe5+ {[%clk 0:00:04]} 43. Kh1 {[%clk 0:00:19]}  Qe4+ {[%clk 0:00:04]} 44. Kh2 {[%clk 0:00:19]}  Qe5+ {[%clk 0:00:05]} 1/2-1/2


[Site "https://www.chess.com"]

[Event "Titled Tuesday Blitz January 03 Late 2023"]
[White "Kuegel, Tobias"]
[Black "Espinosa, Pedro"]
[WhiteFideId "4636295"]
[BlackFideId "30921066"]
[WhiteElo "2332"]
[BlackElo "2229"]
[Result "0-1"]
[Round "07"]
[TimeControl "180+2"]
[Date "2023.01.03"]
[WhiteClock "0:00:34"]
[BlackClock "0:00:13"]

1. e4 {[%clk 0:03:00]}  c5 {[%clk 0:02:59]} 2. Nf3 {[%clk 0:03:01]}  d6 {[%clk 0:03:00]} 3. d4 {[%clk 0:03:01]}  cxd4 {[%clk 0:03:01]} 4. Nxd4 {[%clk 0:03:02]}  Nf6 {[%clk 0:03:01]} 5. f3 {[%clk 0:03:01]}  Nc6 {[%clk 0:02:59]} 6. c4 {[%clk 0:03:01]}  e6 {[%clk 0:02:59]} 7. Nc3 {[%clk 0:03:01]}  Be7 {[%clk 0:02:59]} 8. Be3 {[%clk 0:03:00]}  O-O {[%clk 0:02:59]} 9. Be2 {[%clk 0:03:00]}  d5 {[%clk 0:02:59]} 10. cxd5 {[%clk 0:02:59]}  exd5 {[%clk 0:02:59]} 11. Nxc6 {[%clk 0:02:53]}  bxc6 {[%clk 0:02:59]} 12. exd5 {[%clk 0:02:53]}  cxd5 {[%clk 0:02:58]} 13. O-O {[%clk 0:02:51]}  Be6 {[%clk 0:02:54]} 14. Qd2 {[%clk 0:02:41]}  Qd7 {[%clk 0:02:37]} 15. Bd4 {[%clk 0:02:41]}  h6 {[%clk 0:02:31]} 16. Rad1 {[%clk 0:02:39]}  Rfd8 {[%clk 0:02:31]} 17. Rfe1 {[%clk 0:02:38]}  Rac8 {[%clk 0:02:28]} 18. Ba6 {[%clk 0:02:36]}  Rb8 {[%clk 0:02:25]} 19. Bf1 {[%clk 0:02:34]}  Rbc8 {[%clk 0:02:24]} 20. Ba6 {[%clk 0:02:19]}  Rb8 {[%clk 0:02:22]} 21. Bf1 {[%clk 0:02:18]}  Qb7 {[%clk 0:02:16]} 22. a3 {[%clk 0:02:08]}  a5 {[%clk 0:01:37]} 23. Na4 {[%clk 0:01:58]}  Qb3 {[%clk 0:01:30]} 24. Nc5 {[%clk 0:01:47]}  Bxc5 {[%clk 0:01:29]} 25. Bxc5 {[%clk 0:01:45]}  Qxb2 {[%clk 0:01:27]} 26. Qxa5 {[%clk 0:01:39]}  Qa2 {[%clk 0:01:13]} 27. Qd2 {[%clk 0:01:24]}  Rb2 {[%clk 0:00:55]} 28. Qf4 {[%clk 0:01:06]}  Rc8 {[%clk 0:00:46]} 29. Bd4 {[%clk 0:01:04]}  Rbc2 {[%clk 0:00:13]} 30. Bxf6 {[%clk 0:01:00]}  gxf6 {[%clk 0:00:14]} 31. Qxf6 {[%clk 0:00:55]}  Qxa3 {[%clk 0:00:14]} 32. Rxe6 {[%clk 0:00:42]}  fxe6 {[%clk 0:00:15]} 33. Qxe6+ {[%clk 0:00:38]}  Kg7 {[%clk 0:00:14]} 34. Qe7+ {[%clk 0:00:34]}  Qxe7 {[%clk 0:00:13]} 0-1


[Site "https://www.chess.com"]

[Event "Titled Tuesday Blitz January 03 Late 2023"]
[White "Strahov, Andrej"]
[Black "De La Colina, Nicolas"]
[WhiteFideId "4165489"]
[BlackFideId "30946921"]
[WhiteElo "2398"]
[BlackElo "2244"]
[Result "0-1"]
[Round "07"]
[TimeControl "180+2"]
[Date "2023.01.03"]
[WhiteClock "0:00:01"]
[BlackClock "0:00:13"]

1. d4 {[%clk 0:03:00]}  Nf6 {[%clk 0:02:53]} 2. Nc3 {[%clk 0:03:00]}  d5 {[%clk 0:02:52]} 3. Bf4 {[%clk 0:03:00]}  c5 {[%clk 0:02:53]} 4. e3 {[%clk 0:02:59]}  cxd4 {[%clk 0:02:53]} 5. exd4 {[%clk 0:02:59]}  a6 {[%clk 0:02:52]} 6. Nf3 {[%clk 0:02:59]}  Nc6 {[%clk 0:02:50]} 7. Ne5 {[%clk 0:02:57]}  e6 {[%clk 0:02:47]} 8. Nxc6 {[%clk 0:02:51]}  bxc6 {[%clk 0:02:48]} 9. Na4 {[%clk 0:02:44]}  Nd7 {[%clk 0:02:37]} 10. Bd3 {[%clk 0:02:34]}  c5 {[%clk 0:02:32]} 11. c4 {[%clk 0:02:06]}  cxd4 {[%clk 0:02:14]} 12. O-O {[%clk 0:01:53]}  Be7 {[%clk 0:02:06]} 13. cxd5 {[%clk 0:01:50]}  e5 {[%clk 0:02:06]} 14. Re1 {[%clk 0:01:33]}  f6 {[%clk 0:01:54]} 15. Qh5+ {[%clk 0:01:30]}  Kf8 {[%clk 0:01:52]} 16. Bd2 {[%clk 0:01:12]}  Bb7 {[%clk 0:01:40]} 17. f4 {[%clk 0:01:10]}  Bxd5 {[%clk 0:01:15]} 18. fxe5 {[%clk 0:01:05]}  Nxe5 {[%clk 0:01:16]} 19. Rxe5 {[%clk 0:00:54]}  fxe5 {[%clk 0:01:17]} 20. Rf1+ {[%clk 0:00:54]}  Bf6 {[%clk 0:01:12]} 21. Qxe5 {[%clk 0:00:22]}  Bf7 {[%clk 0:01:11]} 22. Bb4+ {[%clk 0:00:18]}  Kg8 {[%clk 0:01:10]} 23. Qe4 {[%clk 0:00:19]}  Qe8 {[%clk 0:01:05]} 24. Qf3 {[%clk 0:00:17]}  Rb8 {[%clk 0:01:00]} 25. Bd6 {[%clk 0:00:13]}  Rd8 {[%clk 0:00:54]} 26. Bc7 {[%clk 0:00:13]}  Rc8 {[%clk 0:00:54]} 27. Qb7 {[%clk 0:00:07]}  Qd7 {[%clk 0:00:28]} 28. Bf5 {[%clk 0:00:06]}  Rxc7 {[%clk 0:00:29]} 29. Qb8+ {[%clk 0:00:06]}  Qd8 {[%clk 0:00:29]} 30. Qb4 {[%clk 0:00:03]}  Re7 {[%clk 0:00:25]} 31. Rc1 {[%clk 0:00:01]}  Be6 {[%clk 0:00:18]} 32. Nc5 {[%clk 0:00:02]}  Bxf5 {[%clk 0:00:18]} 33. Qb3+ {[%clk 0:00:02]}  Kf8 {[%clk 0:00:17]} 34. Rf1 {[%clk 0:00:02]}  Qc8 {[%clk 0:00:14]} 35. g4 {[%clk 0:00:02]}  Qxc5 {[%clk 0:00:14]} 36. Rxf5 {[%clk 0:00:02]}  Qc1+ {[%clk 0:00:13]} 37. Kf2 {[%clk 0:00:02]}  Qe3+ {[%clk 0:00:13]} 38. Kg2 {[%clk 0:00:01]}  Qxb3 {[%clk 0:00:13]} 0-1


[Site "https://www.chess.com"]